[Event "Early-Titled-Tuesday-Blitz-January-23-2024"]
[Site "Chess.com"]
[Date "2024.01.23"]
[Round "7"]
[White "dennisodessa"]
[Black "ContrVersia"]
[Result "0-1"]
[WhiteElo "2633"]
[BlackElo "2849"]
[TimeControl "180+1"]
[EndTime "9:17:42 PST"]
[Termination "ContrVersia won on time"]

1. d4 {[%clk 0:02:01.2]} 1... Nf6 {[%clk 0:02:58.3]} 2. c4 {[%clk 0:02:01.8]}
2... c5 {[%clk 0:02:58.5]} 3. d5 {[%clk 0:02:00.8]} 3... e6 {[%clk 0:02:58.8]}
4. Nc3 {[%clk 0:01:59.9]} 4... exd5 {[%clk 0:02:58.8]} 5. cxd5 {[%clk
0:02:00.8]} 5... d6 {[%clk 0:02:59.7]} 6. e4 {[%clk 0:02:00.5]} 6... g6 {[%clk
0:03:00]} 7. h3 {[%clk 0:02:01.2]} 7... Bg7 {[%clk 0:02:59.9]} 8. Nf3 {[%clk
0:02:01.8]} 8... O-O {[%clk 0:03:00]} 9. Bd3 {[%clk 0:02:02.4]} 9... b5 {[%clk
0:03:00.2]} 10. Bxb5 {[%clk 0:02:02.6]} 10... Nxe4 {[%clk 0:02:58.3]} 11. Nxe4
{[%clk 0:02:03.3]} 11... Qa5+ {[%clk 0:02:55.6]} 12. Nfd2 {[%clk 0:02:04.2]}
12... Qxb5 {[%clk 0:02:55.5]} 13. Nxd6 {[%clk 0:02:04.9]} 13... Qa6 {[%clk
0:02:55.6]} 14. N2c4 {[%clk 0:02:05.2]} 14... Nd7 {[%clk 0:02:48.8]} 15. O-O
{[%clk 0:02:04.2]} 15... Ne5 {[%clk 0:02:49]} 16. Nxe5 {[%clk 0:02:04.2]} 16...
Bxe5 {[%clk 0:02:48.1]} 17. Nxc8 {[%clk 0:02:04.2]} 17... Raxc8 {[%clk
0:02:45.4]} 18. Qc2 {[%clk 0:02:04.9]} 18... Rfd8 {[%clk 0:02:37.7]} 19. Rd1
{[%clk 0:02:03.5]} 19... Bd4 {[%clk 0:02:30.4]} 20. Be3 {[%clk 0:01:57.8]} 20...
Rxd5 {[%clk 0:02:27.2]} 21. Bxd4 {[%clk 0:01:36.1]} 21... cxd4 {[%clk
0:02:28.1]} 22. Qd3 {[%clk 0:01:36.6]} 22... Qb6 {[%clk 0:02:19.8]} 23. Rd2
{[%clk 0:01:31.9]} 23... Re8 {[%clk 0:02:16.1]} 24. Rad1 {[%clk 0:01:30.5]}
24... Qd6 {[%clk 0:02:10]} 25. g3 {[%clk 0:01:21.3]} 25... Qd7 {[%clk 0:02:07]}
26. Kg2 {[%clk 0:01:15.4]} 26... Rd6 {[%clk 0:02:05.5]} 27. Qf3 {[%clk
0:01:10.5]} 27... Rd8 {[%clk 0:02:04.4]} 28. b4 {[%clk 0:01:07.5]} 28... d3
{[%clk 0:02:00.4]} 29. a3 {[%clk 0:01:05.3]} 29... h5 {[%clk 0:01:55.9]} 30. h4
{[%clk 0:01:03.5]} 30... Rd4 {[%clk 0:01:55.6]} 31. Qe3 {[%clk 0:00:56.7]} 31...
Qd5+ {[%clk 0:01:52.4]} 32. Kh2 {[%clk 0:00:55.2]} 32... Qb3 {[%clk 0:01:45.7]}
33. Qf3 {[%clk 0:00:13.9]} 33... Qxa3 {[%clk 0:01:41]} 34. b5 {[%clk 0:00:12.8]}
34... Qb3 {[%clk 0:01:36.5]} 35. Qc6 {[%clk 0:00:08.8]} 35... R4d6 {[%clk
0:01:35.9]} 36. Qc5 {[%clk 0:00:08.5]} 36... R8d7 {[%clk 0:01:28.4]} 37. Qc8+
{[%clk 0:00:08]} 37... Kg7 {[%clk 0:01:27.1]} 38. Qc5 {[%clk 0:00:08.7]} 38...
Rd5 {[%clk 0:01:22.8]} 39. Qc6 {[%clk 0:00:08.9]} 39... Qb4 {[%clk 0:00:54.8]}
40. Qa6 {[%clk 0:00:04.7]} 40... Qc5 {[%clk 0:00:45.2]} 41. Kg2 {[%clk
0:00:03.7]} 41... Rd4 {[%clk 0:00:42.9]} 42. Qc6 {[%clk 0:00:03.9]} 42... Qf5
{[%clk 0:00:40.2]} 0-1

[Event "Early-Titled-Tuesday-Blitz-January-23-2024"]
[Site "Chess.com"]
[Date "2024.01.23"]
[Round "7"]
[White "tptagain"]
[Black "Msb2"]
[Result "1/2-1/2"]
[WhiteElo "2932"]
[BlackElo "3058"]
[TimeControl "180+1"]
[EndTime "9:17:43 PST"]
[Termination "Game drawn by repetition"]

1. e4 {[%clk 0:03:00.9]} 1... e6 {[%clk 0:03:00.4]} 2. Nf3 {[%clk 0:02:59.6]}
2... d5 {[%clk 0:03:01.3]} 3. Nc3 {[%clk 0:03:00.2]} 3... Nf6 {[%clk 0:03:01.6]}
4. e5 {[%clk 0:03:00.7]} 4... Nfd7 {[%clk 0:03:02.3]} 5. d4 {[%clk 0:03:01.6]}
5... c5 {[%clk 0:03:03.1]} 6. Bb5 {[%clk 0:03:02.3]} 6... Nc6 {[%clk 0:03:03.9]}
7. O-O {[%clk 0:03:02.1]} 7... Be7 {[%clk 0:03:00.2]} 8. Ne2 {[%clk 0:03:00.8]}
8... cxd4 {[%clk 0:02:56.1]} 9. Nexd4 {[%clk 0:03:00.2]} 9... Qc7 {[%clk
0:02:51.8]} 10. Re1 {[%clk 0:02:58.1]} 10... O-O {[%clk 0:02:49.2]} 11. Bf4
{[%clk 0:02:54.3]} 11... Nc5 {[%clk 0:02:47.3]} 12. c3 {[%clk 0:02:50.5]} 12...
a6 {[%clk 0:02:46.1]} 13. Bd3 {[%clk 0:02:47.8]} 13... Nxd4 {[%clk 0:02:36.6]}
14. Nxd4 {[%clk 0:02:35.5]} 14... Nxd3 {[%clk 0:02:37]} 15. Qxd3 {[%clk
0:02:35.7]} 15... Bd7 {[%clk 0:02:34.5]} 16. Qg3 {[%clk 0:02:31.5]} 16... Kh8
{[%clk 0:02:32.6]} 17. Re3 {[%clk 0:02:29.4]} 17... Qc4 {[%clk 0:02:21]} 18. a3
{[%clk 0:01:52.2]} 18... a5 {[%clk 0:02:13.6]} 19. Rae1 {[%clk 0:01:51.8]} 19...
b5 {[%clk 0:02:13.5]} 20. Qg4 {[%clk 0:01:51.8]} 20... f5 {[%clk 0:02:13.3]} 21.
exf6 {[%clk 0:01:49.9]} 21... Bxf6 {[%clk 0:02:13.7]} 22. Qg3 {[%clk 0:01:42.8]}
22... b4 {[%clk 0:02:03.4]} 23. axb4 {[%clk 0:01:40.1]} 23... axb4 {[%clk
0:02:04.3]} 24. Bd6 {[%clk 0:01:31.3]} 24... bxc3 {[%clk 0:01:53.5]} 25. bxc3
{[%clk 0:01:19.6]} 25... Rfe8 {[%clk 0:01:38.3]} 26. Be5 {[%clk 0:01:19.5]}
26... Bxe5 {[%clk 0:01:38.1]} 27. Qxe5 {[%clk 0:01:19.5]} 27... Rf8 {[%clk
0:01:28.3]} 28. h4 {[%clk 0:01:12.1]} 28... Qc8 {[%clk 0:01:17.3]} 29. Rf3
{[%clk 0:00:52]} 29... Rxf3 {[%clk 0:01:13.8]} 30. Nxf3 {[%clk 0:00:52.9]} 30...
Qb8 {[%clk 0:01:11.3]} 31. Qd4 {[%clk 0:00:48]} 31... Ra4 {[%clk 0:01:10.5]} 32.
Qd3 {[%clk 0:00:40.8]} 32... h6 {[%clk 0:01:03.1]} 33. Ne5 {[%clk 0:00:26.1]}
33... Be8 {[%clk 0:01:03.2]} 34. Qf3 {[%clk 0:00:26.2]} 34... Kg8 {[%clk
0:01:00.1]} 35. h5 {[%clk 0:00:24.2]} 35... Qd6 {[%clk 0:00:26.1]} 36. Ng6
{[%clk 0:00:20.9]} 36... Bf7 {[%clk 0:00:20.7]} 37. g3 {[%clk 0:00:20.1]} 37...
Ra8 {[%clk 0:00:20.6]} 38. Qd3 {[%clk 0:00:14.9]} 38... Re8 {[%clk 0:00:19]} 39.
c4 {[%clk 0:00:14.9]} 39... d4 {[%clk 0:00:15.1]} 40. Re5 {[%clk 0:00:09.1]}
40... Bxg6 {[%clk 0:00:12.6]} 41. Qxg6 {[%clk 0:00:10]} 41... Qxe5 {[%clk
0:00:13.2]} 42. Qxe8+ {[%clk 0:00:09.9]} 42... Kh7 {[%clk 0:00:14.1]} 43. Qg6+
{[%clk 0:00:10.1]} 43... Kg8 {[%clk 0:00:14.8]} 44. Qe8+ {[%clk 0:00:10.4]}
44... Kh7 {[%clk 0:00:15.5]} 45. Qg6+ {[%clk 0:00:10.7]} 45... Kg8 {[%clk
0:00:16]} 46. Qe8+ {[%clk 0:00:10.9]} 1/2-1/2

[Event "Early-Titled-Tuesday-Blitz-January-23-2024"]
[Site "Chess.com"]
[Date "2024.01.23"]
[Round "7"]
[White "NowInChess"]
[Black "PattyCastillo"]
[Result "1-0"]
[WhiteElo "2281"]
[BlackElo "1957"]
[TimeControl "180+1"]
[EndTime "9:17:43 PST"]
[Termination "NowInChess won on time"]

1. e4 {[%clk 0:03:00.9]} 1... c5 {[%clk 0:02:55.1]} 2. d3 {[%clk 0:03:00.8]}
2... Nc6 {[%clk 0:02:54.3]} 3. g3 {[%clk 0:03:01]} 3... g6 {[%clk 0:02:54]} 4.
Bg2 {[%clk 0:03:01.3]} 4... Bg7 {[%clk 0:02:54.4]} 5. f4 {[%clk 0:03:01.9]} 5...
d6 {[%clk 0:02:54.3]} 6. Nf3 {[%clk 0:03:02.2]} 6... Nf6 {[%clk 0:02:54.1]} 7.
O-O {[%clk 0:03:02.1]} 7... O-O {[%clk 0:02:54]} 8. Nc3 {[%clk 0:03:00]} 8...
Bg4 {[%clk 0:02:53.5]} 9. h3 {[%clk 0:02:58.6]} 9... Bxf3 {[%clk 0:02:51.8]} 10.
Qxf3 {[%clk 0:02:59.5]} 10... Nd4 {[%clk 0:02:49.9]} 11. Qf2 {[%clk 0:02:59.5]}
11... b5 {[%clk 0:02:45.4]} 12. e5 {[%clk 0:02:53.3]} 12... Nd7 {[%clk 0:02:30]}
13. Bxa8 {[%clk 0:02:45.6]} 13... Qxa8 {[%clk 0:02:30.9]} 14. exd6 {[%clk
0:02:43]} 14... exd6 {[%clk 0:02:30.4]} 15. Nd1 {[%clk 0:02:22.4]} 15... Nf5
{[%clk 0:01:40.5]} 16. c3 {[%clk 0:02:16.3]} 16... b4 {[%clk 0:01:39.8]} 17. g4
{[%clk 0:02:14.2]} 17... bxc3 {[%clk 0:01:32.9]} 18. gxf5 {[%clk 0:02:05.5]}
18... Bd4 {[%clk 0:01:31.3]} 19. Be3 {[%clk 0:01:56.9]} 19... cxb2 {[%clk
0:01:15.4]} 20. Bxd4 {[%clk 0:01:50.5]} 20... cxd4 {[%clk 0:01:15.3]} 21. Nxb2
{[%clk 0:01:46]} 21... Qd5 {[%clk 0:01:10.2]} 22. fxg6 {[%clk 0:01:17]} 22...
hxg6 {[%clk 0:00:58.2]} 23. Qg2 {[%clk 0:01:15]} 23... Qf5 {[%clk 0:00:51.2]}
24. Qg4 {[%clk 0:01:08.2]} 24... Qb5 {[%clk 0:00:44.1]} 25. Rab1 {[%clk
0:01:00.7]} 25... Nf6 {[%clk 0:00:42.9]} 26. Qg5 {[%clk 0:00:54.7]} 26... Qxg5+
{[%clk 0:00:30.6]} 27. fxg5 {[%clk 0:00:55.6]} 27... Nh5 {[%clk 0:00:30.7]} 28.
Nc4 {[%clk 0:00:53.9]} 28... Ng3 {[%clk 0:00:22.6]} 29. Rf2 {[%clk 0:00:49.6]}
29... Nf5 {[%clk 0:00:20.5]} 30. Rb7 {[%clk 0:00:47.4]} 30... a6 {[%clk
0:00:19.1]} 31. Rb6 {[%clk 0:00:46.7]} 31... d5 {[%clk 0:00:18.2]} 32. Ne5
{[%clk 0:00:39.5]} 32... Re8 {[%clk 0:00:17.7]} 33. Nf3 {[%clk 0:00:37.7]} 33...
Re3 {[%clk 0:00:16.2]} 34. Rxa6 {[%clk 0:00:32.7]} 34... Rxd3 {[%clk 0:00:16.2]}
35. a4 {[%clk 0:00:31.7]} 35... Rd1+ {[%clk 0:00:15.3]} 36. Kh2 {[%clk
0:00:30.2]} 36... Ra1 {[%clk 0:00:14.7]} 37. Rd2 {[%clk 0:00:28.3]} 37... Kg7
{[%clk 0:00:07.9]} 38. Nxd4 {[%clk 0:00:27.4]} 38... Nh4 {[%clk 0:00:03.2]} 39.
Rf2 {[%clk 0:00:26]} 39... Rd1 {[%clk 0:00:01.6]} 40. Nf3 {[%clk 0:00:25]} 1-0

[Event "Early-Titled-Tuesday-Blitz-January-23-2024"]
[Site "Chess.com"]
[Date "2024.01.23"]
[Round "7"]
[White "AvitalBor"]
[Black "verrbaa"]
[Result "1-0"]
[WhiteElo "2771"]
[BlackElo "2495"]
[TimeControl "180+1"]
[EndTime "9:17:44 PST"]
[Termination "AvitalBor won on time"]

1. c4 {[%clk 0:03:00.9]} 1... Nf6 {[%clk 0:02:54.8]} 2. e3 {[%clk 0:02:57.7]}
2... g6 {[%clk 0:02:52.3]} 3. g4 {[%clk 0:02:55.4]} 3... h6 {[%clk 0:02:45.9]}
4. Bg2 {[%clk 0:02:54.6]} 4... Bg7 {[%clk 0:02:43.8]} 5. Nc3 {[%clk 0:02:54.8]}
5... d6 {[%clk 0:02:41.3]} 6. h3 {[%clk 0:02:53.9]} 6... O-O {[%clk 0:02:33.6]}
7. Nge2 {[%clk 0:02:53.2]} 7... e5 {[%clk 0:02:16.4]} 8. d4 {[%clk 0:02:47.6]}
8... c6 {[%clk 0:02:02]} 9. b3 {[%clk 0:02:42.9]} 9... exd4 {[%clk 0:01:43.3]}
10. Nxd4 {[%clk 0:02:40.9]} 10... Re8 {[%clk 0:01:41.3]} 11. O-O {[%clk
0:02:37.3]} 11... h5 {[%clk 0:01:34.4]} 12. g5 {[%clk 0:02:30.9]} 12... Nh7
{[%clk 0:01:32]} 13. h4 {[%clk 0:02:30.8]} 13... f6 {[%clk 0:01:14.4]} 14. Qd3
{[%clk 0:02:19.1]} 14... Nf8 {[%clk 0:01:04.8]} 15. Ne4 {[%clk 0:01:58.4]} 15...
f5 {[%clk 0:01:01.6]} 16. Nc3 {[%clk 0:01:58.2]} 16... Nbd7 {[%clk 0:01:01.2]}
17. Ba3 {[%clk 0:01:50.9]} 17... Nc5 {[%clk 0:01:00.8]} 18. Qc2 {[%clk 0:01:42]}
18... a5 {[%clk 0:01:00.9]} 19. Rad1 {[%clk 0:01:41.1]} 19... Qc7 {[%clk
0:01:01.1]} 20. Ndb5 {[%clk 0:01:32.8]} 20... cxb5 {[%clk 0:00:44.1]} 21. Nxb5
{[%clk 0:01:33.7]} 21... Qe7 {[%clk 0:00:36.2]} 22. Nxd6 {[%clk 0:01:30.8]}
22... Nce6 {[%clk 0:00:35.4]} 23. Nxe8 {[%clk 0:01:23.7]} 23... Qxe8 {[%clk
0:00:35.5]} 24. Rd6 {[%clk 0:01:17.8]} 24... Rb8 {[%clk 0:00:30.9]} 25. Rfd1
{[%clk 0:01:06]} 25... Bd7 {[%clk 0:00:29.5]} 26. Bb2 {[%clk 0:01:03.7]} 26...
Qe7 {[%clk 0:00:19.9]} 27. Bxg7 {[%clk 0:00:52.9]} 27... Qxg7 {[%clk 0:00:19.9]}
28. c5 {[%clk 0:00:53.4]} 28... Qe7 {[%clk 0:00:12.4]} 29. a3 {[%clk 0:00:41.3]}
29... Rc8 {[%clk 0:00:09.6]} 30. b4 {[%clk 0:00:41.3]} 30... axb4 {[%clk
0:00:10.5]} 31. axb4 {[%clk 0:00:42.1]} 31... Bc6 {[%clk 0:00:11.2]} 32. Qc4
{[%clk 0:00:33.1]} 32... Bxg2 {[%clk 0:00:10.6]} 33. Kxg2 {[%clk 0:00:34]} 33...
Re8 {[%clk 0:00:04.6]} 34. b5 {[%clk 0:00:30.8]} 34... Qf7 {[%clk 0:00:04.7]}
35. Qd5 {[%clk 0:00:25]} 35... f4 {[%clk 0:00:04.4]} 36. c6 {[%clk 0:00:18.4]}
36... bxc6 {[%clk 0:00:04.5]} 37. bxc6 {[%clk 0:00:19.3]} 37... fxe3 {[%clk
0:00:04.9]} 38. fxe3 {[%clk 0:00:20.2]} 38... Rc8 {[%clk 0:00:03.1]} 39. Rf1
{[%clk 0:00:18.5]} 39... Nf4+ {[%clk 0:00:01.4]} 40. Rxf4 {[%clk 0:00:18.1]}
40... Qxd5+ {[%clk 0:00:01.8]} 41. Rxd5 {[%clk 0:00:18.9]} 41... Rxc6 {[%clk
0:00:02.5]} 42. Rd8 {[%clk 0:00:19.1]} 1-0

[Event "Early-Titled-Tuesday-Blitz-January-23-2024"]
[Site "Chess.com"]
[Date "2024.01.23"]
[Round "7"]
[White "Kotlyar_K"]
[Black "GrotBchess"]
[Result "1-0"]
[WhiteElo "2497"]
[BlackElo "2303"]
[TimeControl "180+1"]
[EndTime "9:17:54 PST"]
[Termination "Kotlyar_K won by resignation"]

1. e4 {[%clk 0:03:00.9]} 1... c5 {[%clk 0:02:58]} 2. Nf3 {[%clk 0:03:00.4]} 2...
e6 {[%clk 0:02:58.1]} 3. d4 {[%clk 0:03:00.6]} 3... cxd4 {[%clk 0:02:58.8]} 4.
Nxd4 {[%clk 0:03:01.3]} 4... Nc6 {[%clk 0:02:59.1]} 5. Nc3 {[%clk 0:03:01.7]}
5... Qc7 {[%clk 0:02:59.3]} 6. g3 {[%clk 0:03:01.1]} 6... a6 {[%clk 0:02:56.4]}
7. Bg2 {[%clk 0:03:00.9]} 7... Nf6 {[%clk 0:02:56.4]} 8. O-O {[%clk 0:03:00.8]}
8... Nxd4 {[%clk 0:02:56.4]} 9. Qxd4 {[%clk 0:03:00.3]} 9... Bc5 {[%clk
0:02:56.1]} 10. Bf4 {[%clk 0:03:00.4]} 10... d6 {[%clk 0:02:56.1]} 11. Qd3
{[%clk 0:02:56.2]} 11... h6 {[%clk 0:02:53.9]} 12. Na4 {[%clk 0:02:55.7]} 12...
e5 {[%clk 0:02:50.5]} 13. Bd2 {[%clk 0:02:32.5]} 13... O-O {[%clk 0:02:46.1]}
14. c4 {[%clk 0:02:29.4]} 14... Be6 {[%clk 0:02:41.9]} 15. Nc3 {[%clk
0:02:28.4]} 15... Bd4 {[%clk 0:02:40.7]} 16. b3 {[%clk 0:02:28.3]} 16... Rac8
{[%clk 0:02:37.3]} 17. Rac1 {[%clk 0:02:27]} 17... Rfd8 {[%clk 0:02:34.3]} 18.
Nd5 {[%clk 0:02:26.9]} 18... Bxd5 {[%clk 0:02:31.6]} 19. exd5 {[%clk 0:02:25]}
19... Qc5 {[%clk 0:02:28.9]} 20. Qf3 {[%clk 0:02:16.2]} 20... Qa7 {[%clk
0:02:20.3]} 21. Bxh6 {[%clk 0:02:13.7]} 21... e4 {[%clk 0:02:13.8]} 22. Qf4
{[%clk 0:02:11.7]} 22... gxh6 {[%clk 0:02:08.9]} 23. Qxh6 {[%clk 0:02:11.5]}
23... e3 {[%clk 0:01:30.6]} 24. Rc2 {[%clk 0:01:28.9]} 24... exf2+ {[%clk
0:01:29.1]} 25. Kh1 {[%clk 0:01:28.8]} 25... Re8 {[%clk 0:01:09.4]} 26. Bh3
{[%clk 0:01:24.3]} 26... Re1 {[%clk 0:00:53.1]} 27. Qg5+ {[%clk 0:01:09.3]}
27... Kf8 {[%clk 0:00:46.5]} 28. Qh6+ {[%clk 0:00:51.2]} 28... Ke7 {[%clk
0:00:40.5]} 29. Qf4 {[%clk 0:00:26.3]} 29... Rh8 {[%clk 0:00:26]} 30. Bg2 {[%clk
0:00:25.8]} 30... Rxf1+ {[%clk 0:00:21.4]} 31. Bxf1 {[%clk 0:00:25.4]} 31... Be3
{[%clk 0:00:21.1]} 32. Re2 {[%clk 0:00:23.3]} 32... Qd4 {[%clk 0:00:16.3]} 33.
Qxd4 {[%clk 0:00:21.6]} 33... Kd7 {[%clk 0:00:14.1]} 34. Qxe3 {[%clk 0:00:15.5]}
34... Ng4 {[%clk 0:00:13.5]} 35. Qe7+ {[%clk 0:00:15.5]} 35... Kc8 {[%clk
0:00:13.7]} 36. Qh4 {[%clk 0:00:13.2]} 36... Rxh4 {[%clk 0:00:12.9]} 37. gxh4
{[%clk 0:00:14.1]} 37... Kc7 {[%clk 0:00:12.8]} 38. h3 {[%clk 0:00:14.5]} 38...
Ne5 {[%clk 0:00:11.6]} 39. Rxf2 {[%clk 0:00:14.3]} 39... Kb6 {[%clk 0:00:12.2]}
40. h5 {[%clk 0:00:13.6]} 40... Kc5 {[%clk 0:00:12.7]} 41. h6 {[%clk 0:00:14]}
41... Kd4 {[%clk 0:00:13]} 42. h7 {[%clk 0:00:14.5]} 42... Ke3 {[%clk
0:00:13.2]} 43. Rf6 {[%clk 0:00:13.7]} 1-0

[Event "Early-Titled-Tuesday-Blitz-January-23-2024"]
[Site "Chess.com"]
[Date "2024.01.23"]
[Round "7"]
[White "Arlo2024"]
[Black "Jojo_898"]
[Result "1-0"]
[WhiteElo "2311"]
[BlackElo "2439"]
[TimeControl "180+1"]
[EndTime "9:17:54 PST"]
[Termination "Arlo2024 won by resignation"]

1. e4 {[%clk 0:03:00.9]} 1... d6 {[%clk 0:03:00.1]} 2. d4 {[%clk 0:03:00.8]}
2... Nf6 {[%clk 0:03:00.4]} 3. Nc3 {[%clk 0:03:00.3]} 3... g6 {[%clk 0:03:00.6]}
4. Be3 {[%clk 0:02:59.6]} 4... c6 {[%clk 0:03:00.8]} 5. Qd2 {[%clk 0:02:57.2]}
5... h5 {[%clk 0:03:00.1]} 6. Nf3 {[%clk 0:02:51.6]} 6... b5 {[%clk 0:03:00.1]}
7. Bd3 {[%clk 0:02:49.7]} 7... b4 {[%clk 0:02:59.2]} 8. Ne2 {[%clk 0:02:48.5]}
8... a5 {[%clk 0:02:59.3]} 9. h3 {[%clk 0:02:46.4]} 9... Bg7 {[%clk 0:02:59.1]}
10. O-O {[%clk 0:02:40.8]} 10... O-O {[%clk 0:02:59.1]} 11. Bh6 {[%clk
0:02:37.8]} 11... Nbd7 {[%clk 0:02:56.5]} 12. e5 {[%clk 0:02:28.6]} 12... Nh7
{[%clk 0:02:31.6]} 13. e6 {[%clk 0:02:20]} 13... Nb6 {[%clk 0:02:14.2]} 14.
exf7+ {[%clk 0:02:18.7]} 14... Rxf7 {[%clk 0:02:14.8]} 15. Bxg6 {[%clk
0:02:16.7]} 15... Rf6 {[%clk 0:02:14.9]} 16. Bxh7+ {[%clk 0:02:15.2]} 16... Kxh7
{[%clk 0:02:14.9]} 17. Ng5+ {[%clk 0:02:01.7]} 17... Kg8 {[%clk 0:02:07]} 18.
Bxg7 {[%clk 0:02:01.3]} 18... Kxg7 {[%clk 0:02:07.9]} 19. Ng3 {[%clk 0:02:01.1]}
19... Qe8 {[%clk 0:02:05.3]} 20. Qe2 {[%clk 0:01:55]} 20... Kh6 {[%clk
0:01:58.2]} 21. f4 {[%clk 0:01:50.1]} 21... Nd5 {[%clk 0:01:54.1]} 22. Rae1
{[%clk 0:01:45]} 22... Ba6 {[%clk 0:01:40.6]} 23. Qd2 {[%clk 0:01:39.8]} 23...
Bxf1 {[%clk 0:01:40.5]} 24. Rxf1 {[%clk 0:01:39.5]} 24... Kg7 {[%clk 0:01:29.6]}
25. f5 {[%clk 0:01:35.4]} 25... Qd7 {[%clk 0:00:58.5]} 26. N5e4 {[%clk
0:01:26.7]} 26... Rh6 {[%clk 0:00:56.8]} 27. Qg5+ {[%clk 0:01:22.9]} 27... Kh7
{[%clk 0:00:57]} 28. Qh4 {[%clk 0:01:09.5]} 28... Rg8 {[%clk 0:00:39.3]} 29.
Ng5+ {[%clk 0:01:09.1]} 29... Kg7 {[%clk 0:00:38.2]} 30. Nxh5+ {[%clk
0:01:05.7]} 30... Kf8 {[%clk 0:00:38]} 31. Ne6+ {[%clk 0:01:03.3]} 31... Ke8
{[%clk 0:00:38.4]} 32. Nhg7+ {[%clk 0:01:01.2]} 32... Rxg7 {[%clk 0:00:38.3]}
33. Qxh6 {[%clk 0:01:01.8]} 33... Rg8 {[%clk 0:00:38.5]} 34. Qh7 {[%clk
0:00:58.1]} 34... Nf6 {[%clk 0:00:38.6]} 35. Qh4 {[%clk 0:00:53.6]} 35... c5
{[%clk 0:00:31.9]} 36. c3 {[%clk 0:00:53.2]} 36... bxc3 {[%clk 0:00:31.7]} 37.
bxc3 {[%clk 0:00:52.9]} 37... Qa4 {[%clk 0:00:28.8]} 38. Rb1 {[%clk 0:00:51]}
38... Kd7 {[%clk 0:00:25.8]} 39. Qf2 {[%clk 0:00:31.7]} 39... Ne4 {[%clk
0:00:17.9]} 40. Qf3 {[%clk 0:00:28.4]} 40... Qc2 {[%clk 0:00:15.1]} 41. Re1
{[%clk 0:00:21.7]} 41... Ng5 {[%clk 0:00:13.5]} 42. Nxg5 {[%clk 0:00:18.5]}
42... Rxg5 {[%clk 0:00:14.4]} 43. Qb7+ {[%clk 0:00:18.6]} 1-0

[Event "Early-Titled-Tuesday-Blitz-January-23-2024"]
[Site "Chess.com"]
[Date "2024.01.23"]
[Round "7"]
[White "rionelG"]
[Black "Actuary44"]
[Result "0-1"]
[WhiteElo "2316"]
[BlackElo "2506"]
[TimeControl "180+1"]
[EndTime "9:17:56 PST"]
[Termination "Actuary44 won on time"]

1. e4 {[%clk 0:03:00.9]} 1... b6 {[%clk 0:03:00.4]} 2. d4 {[%clk 0:03:00.3]}
2... Bb7 {[%clk 0:03:01]} 3. Bd3 {[%clk 0:03:00.9]} 3... e6 {[%clk 0:03:01.6]}
4. Qe2 {[%clk 0:03:01.2]} 4... Nf6 {[%clk 0:03:02.2]} 5. c3 {[%clk 0:02:57.5]}
5... d5 {[%clk 0:03:02.6]} 6. e5 {[%clk 0:02:57.6]} 6... Nfd7 {[%clk 0:03:03]}
7. f4 {[%clk 0:02:56.8]} 7... c5 {[%clk 0:03:03.4]} 8. Nf3 {[%clk 0:02:56.2]}
8... Nc6 {[%clk 0:03:03.8]} 9. O-O {[%clk 0:02:55.6]} 9... Qc8 {[%clk
0:03:04.3]} 10. f5 {[%clk 0:02:52]} 10... Nd8 {[%clk 0:02:52.7]} 11. fxe6 {[%clk
0:02:48.7]} 11... Nxe6 {[%clk 0:02:52]} 12. Bf5 {[%clk 0:02:46.9]} 12... Be7
{[%clk 0:02:46.4]} 13. Bxe6 {[%clk 0:02:16.5]} 13... fxe6 {[%clk 0:02:47.3]} 14.
Ng5 {[%clk 0:02:16.7]} 14... Bxg5 {[%clk 0:01:47.3]} 15. Bxg5 {[%clk 0:02:10.6]}
15... Ba6 {[%clk 0:01:44.5]} 16. Qh5+ {[%clk 0:02:01.2]} 16... g6 {[%clk
0:01:44.3]} 17. Qh6 {[%clk 0:02:00.1]} 17... Rf8 {[%clk 0:01:16.8]} 18. Rxf8+
{[%clk 0:01:59.1]} 18... Nxf8 {[%clk 0:01:17.7]} 19. Na3 {[%clk 0:01:35.2]}
19... Qd7 {[%clk 0:01:13.4]} 20. c4 {[%clk 0:01:21.5]} 20... dxc4 {[%clk
0:01:09.2]} 21. Rf1 {[%clk 0:01:17.7]} 21... Qxd4+ {[%clk 0:01:07.4]} 22. Be3
{[%clk 0:01:17.3]} 22... Qxe5 {[%clk 0:00:47.4]} 23. Qxf8+ {[%clk 0:01:09.1]}
23... Kd7 {[%clk 0:00:45.8]} 24. Qf7+ {[%clk 0:00:50.2]} 24... Kc6 {[%clk
0:00:36.6]} 25. Bf4 {[%clk 0:00:18.5]} 25... Qd4+ {[%clk 0:00:16.3]} 26. Kh1
{[%clk 0:00:16.1]} 26... Qd7 {[%clk 0:00:14.1]} 27. Qf6 {[%clk 0:00:11.4]} 27...
c3 {[%clk 0:00:11.9]} 28. Re1 {[%clk 0:00:08.2]} 28... Re8 {[%clk 0:00:07.7]}
29. Qxc3 {[%clk 0:00:05]} 29... Kb7 {[%clk 0:00:06.8]} 30. Qf3+ {[%clk
0:00:04.7]} 30... Qc6 {[%clk 0:00:05.4]} 31. Qxc6+ {[%clk 0:00:04.8]} 31... Kxc6
{[%clk 0:00:06.3]} 32. Kg1 {[%clk 0:00:03.7]} 32... Kd5 {[%clk 0:00:06.9]} 33.
Re5+ {[%clk 0:00:02.7]} 33... Kd4 {[%clk 0:00:06.8]} 34. Re1 {[%clk 0:00:02.8]}
34... e5 {[%clk 0:00:06.3]} 35. Be3+ {[%clk 0:00:02.9]} 35... Kd3 {[%clk
0:00:05.3]} 36. h3 {[%clk 0:00:01.9]} 36... Bb7 {[%clk 0:00:05.2]} 37. Bh6
{[%clk 0:00:01.9]} 37... e4 {[%clk 0:00:04.2]} 38. Nb1 {[%clk 0:00:01.8]} 38...
e3 {[%clk 0:00:04.5]} 39. Nc3 {[%clk 0:00:02]} 39... Kd2 {[%clk 0:00:04.5]} 0-1